fUSD/lending_fUSD_20260221
["ID","MTS","AMOUNT","RATE_DAILY","PERIOD"]
[406281912,1771686646454,-289.333,0.0004506,10]
[406281921,1771686646532,-919.0,0.00040255,2]
[406281923,1771686646541,-919.0,0.00043255,2]
[406281925,1771686646550,-1000.0,0.00044987,120]
[406281927,1771686646559,-1000.0,0.00044987,120]
[406281929,1771686646569,-1000.0,0.00044987,120]
[406281931,1771686646578,-1000.0,0.00044987,120]
[406281933,1771686646587,-1000.0,0.00044987,120]
[406281935,1771686646596,-1619.27,0.00045,30]
[406281937,1771686646605,-18906.10413177,0.0004506,10]
[406281948,1771686646867,-983.87743519,0.00035969,2]
[406281949,1771686646876,-1000.0,0.00044987,120]
[406281950,1771686646885,-177.35,0.00045,30]
[406281951,1771686646894,-7418.26408626,0.0004506,10]
[406281952,1771686646913,-273.0,0.0004495,30]
[406281953,1771686646923,-418.87500006,0.0004495,30]
[406281954,1771686663596,500.0,0.00013326,2]
[406281955,1771686669837,9500.01,0.0001359,2]
[406281956,1771686669873,10000.01,0.0001359,2]
[406281957,1771686669906,5268.4952,0.0001359,2]
[406281958,1771686676843,150.0,0.00013562,2]
[406281959,1771686677003,150.0,0.00013617,2]
[406281960,1771686677219,200.0,0.00013672,2]
[406281961,1771686677435,150.0,0.00013562,2]
[406281962,1771686700537,-5000.0,0.00014017,2]
[406281963,1771686711656,0.01,0.00014017,2]
[406281964,1771686711690,150.43357019,0.00014017,2]
[406281965,1771686728457,1106.16083183,0.00013689,2]
[406281966,1771686728507,1106.16083183,0.00013689,2]
[406281967,1771686728553,1106.16083183,0.00013689,2]
[406281968,1771686728609,1106.16083183,0.00013689,2]
[406281969,1771686728659,1106.16083183,0.00013689,2]
[406281970,1771686728707,1106.16083183,0.00013689,2]
[406281971,1771686728753,1106.16083183,0.00013689,2]
[406281972,1771686728799,1106.16083183,0.00013689,2]
[406281973,1771686728845,1106.16083183,0.00013689,2]
[406281974,1771686728894,44.56251353,0.00013689,2]
[406281975,1771686728933,1061.5983183,0.00013689,2]
[406281976,1771686728995,1106.16083183,0.00013689,2]
[406281977,1771686729045,1106.16083183,0.00013689,2]
[406281978,1771686729089,1106.16083183,0.00013689,2]
[406281979,1771686729133,1106.16083183,0.00013689,2]
[406281980,1771686729178,1106.16083183,0.00013689,2]
[406281981,1771686729226,1106.16083183,0.00013689,2]
[406281982,1771686729273,1106.16083183,0.00013689,2]
[406281983,1771686729319,1106.16083183,0.00013689,2]
[406281984,1771686729371,89.12502706,0.00013689,2]
[406281985,1771686729412,1017.03580477,0.00013689,2]
[406281986,1771686729459,1106.16083183,0.00013689,2]
[406281987,1771686729507,1106.16083183,0.00013689,2]
[406281988,1771686729557,1106.16083183,0.00013689,2]
[406281989,1771686729604,1106.16083183,0.00013689,2]
[406281990,1771686729652,1106.16083183,0.00013689,2]
[406281991,1771686729703,1106.16083183,0.00013689,2]
[406281992,1771686729750,1106.16083183,0.00013689,2]
[406281993,1771686729799,1106.16083183,0.00013689,2]
[406281994,1771686729861,133.68754059,0.00013689,2]
[406281995,1771686729902,972.47329124,0.00013689,2]
[406281996,1771686729958,1106.16083183,0.00013689,2]
[406281997,1771686730004,1106.16083183,0.00013689,2]
[406281998,1771686730049,1106.16083183,0.00013689,2]
[406281999,1771686730094,1106.16083183,0.00013689,2]
[406282000,1771686730139,1106.16083183,0.00013689,2]
[406282001,1771686730204,1106.16083183,0.00013689,2]
[406282002,1771686730279,1106.16083183,0.00013689,2]
[406282003,1771686730326,1106.16083183,0.00013689,2]
[406282004,1771686730376,178.25005412,0.00013689,2]
[406282005,1771686736613,500.0,0.0001,2]
[406282006,1771686741106,500.0,0.0001,2]
[406282007,1771686741139,500.0,0.0001,2]
[406282008,1771686741625,500.0,0.0001,2]
[406282009,1771686742114,500.0,0.0001,2]
[406282010,1771686742200,600.0,0.0001,2]
[406282011,1771686742629,500.0,0.0001,2]
[406282012,1771686742803,600.0,0.0001,2]
[406282013,1771686743032,500.0,0.0001,2]
[406282014,1771686743386,500.0,0.0001,2]
[406282015,1771686743431,600.0,0.0001,2]
[406282016,1771686743562,500.0,0.0001,2]
[406282017,1771686743705,800.0,0.0001,2]
[406282018,1771686743916,600.0,0.0001,2]
[406282019,1771686744075,500.0,0.0001,2]
[406282020,1771686744416,600.0,0.0001,2]
[406282021,1771686744552,500.0,0.0001,2]
[406282022,1771686744916,600.0,0.0001,2]
[406282023,1771686745028,500.0,0.0001,2]
[406282024,1771686745405,600.0,0.0001,2]
[406282025,1771686745476,500.0,0.0001,2]
[406282026,1771686745927,600.0,0.0001,2]
[406282027,1771686745957,700.01,0.0001,2]
[406282028,1771686746968,600.0,0.0001,2]
[406282029,1771686747486,600.0,0.0001,2]
[406282030,1771686748040,600.0,0.0001,2]
[406282031,1771686748503,600.0,0.0001,2]
[406282032,1771686749576,600.0,0.0001,2]
[406282033,1771686750040,500.0,0.0001,2]
[406282034,1771686750708,500.0,0.0001,2]
[406282035,1771686751807,500.0,0.0001,2]
[406282036,1771686751935,500.0,0.0001,2]
[406282037,1771686752274,500.0,0.0001,2]
[406282038,1771686752877,500.0,0.0001,2]
[406282039,1771686753359,652.01,0.0001,2]
[406282040,1771686754905,506.84662347,0.0001,2]
[406282041,1771686806731,-300.0,0.00013688,2]
[406282042,1771686806780,-927.91077771,0.00013689,2]
[406282043,1771686806828,-1106.16083183,0.00013689,2]
[406282044,1771686806875,-1106.16083183,0.00013689,2]
[406282045,1771686806923,-1106.16083183,0.00013689,2]
[406282046,1771686807296,-1106.16083183,0.00013689,2]
[406282047,1771686807345,-1106.16083183,0.00013689,2]
[406282048,1771686807394,-1106.16083183,0.00013689,2]
[406282049,1771686807444,-1106.16083183,0.00013689,2]
[406282050,1771686809822,1150.72334536,0.00013688,2]
[406282051,1771686809860,49.27665464,0.00013688,2]
[406282052,1771686814721,1106.16083183,0.00013689,2]
[406282053,1771686814777,1106.16083183,0.00013689,2]
[406282054,1771686814827,1106.16083183,0.00013689,2]
[406282055,1771686814878,1106.16083183,0.00013689,2]
[406282056,1771686814929,1106.16083183,0.00013689,2]
[406282057,1771686814980,1106.16083183,0.00013689,2]
[406282058,1771686815036,1106.16083183,0.00013689,2]
[406282059,1771686815093,1106.16083183,0.00013689,2]
[406282060,1771686815144,1101.44669072,0.00013689,2]
[406282061,1771686815182,4.71414111,0.00013689,2]
[406282062,1771686815234,1106.16083183,0.00013689,2]
[406282063,1771686815287,1106.16083183,0.00013689,2]
[406282064,1771686815344,1106.16083183,0.00013689,2]
[406282065,1771686815394,1106.16083183,0.00013689,2]
[406282066,1771686815462,1106.16083183,0.00013689,2]
[406282067,1771686815532,1106.16083183,0.00013689,2]
[406282068,1771686815592,1106.16083183,0.00013689,2]
[406282069,1771686815642,1106.16083183,0.00013689,2]
[406282070,1771686815690,1106.16083183,0.00013689,2]
[406282071,1771686815739,39.84837242,0.00013689,2]
[406282072,1771686818806,-1066.31245941,0.00013689,2]
[406282073,1771686818850,-1106.16083183,0.00013689,2]
[406282074,1771686818893,-1106.16083183,0.00013689,2]
[406282075,1771686818938,-1106.16083183,0.00013689,2]
[406282076,1771686818983,-124.25925837,0.00013689,2]
[406282077,1771686819213,-981.90157346,0.00013689,2]
[406282078,1771686819264,-1106.16083183,0.00013689,2]
[406282079,1771686819312,-1106.16083183,0.00013689,2]
[406282080,1771686819358,-1106.16083183,0.00013689,2]
[406282081,1771686820579,500.0,0.0001349,2]
[406282082,1771686841474,300.0,0.00013999,2]
[406282084,1771686855443,500.0,0.00013698,2]
[406282085,1771686855695,99.2418621,0.00013698,2]
[406282086,1771686855731,400.7581379,0.00013698,2]
[406282089,1771686901397,300.0,0.00013999,2]
[406282090,1771686901725,1200.0,0.00013999,2]
[406282091,1771686901816,150.0,0.00013999,2]
[406282092,1771686906693,200.0,0.00013999,2]
[406282094,1771686962994,300.0,0.00013999,2]
[406282095,1771687005821,500.0,0.00013698,2]
[406282096,1771687006048,500.0,0.00013698,2]
[406282097,1771687006279,500.0,0.00013698,2]
[406282098,1771687006510,184.20577534,0.00013698,2]
[406282099,1771687014449,150.44357019,0.00013999,2]
[406282100,1771687021310,300.0,0.00013999,2]
[406282101,1771687032913,-600.0,0.00014,2]
[406282102,1771687032956,-500.0,0.00014,2]
[406282103,1771687032999,-500.0,0.00014,2]
[406282104,1771687033048,-500.0,0.00014,2]
[406282105,1771687033091,-600.0,0.00014,2]
[406282106,1771687033134,-500.0,0.00014,2]
[406282107,1771687033178,-600.0,0.00014,2]
[406282108,1771687033230,-600.0,0.00014,2]
[406282109,1771687033275,-600.0,0.00014,2]
[406282110,1771687033515,-600.0,0.00014,2]
[406282111,1771687033573,-600.0,0.00014,2]
[406282112,1771687033621,-500.0,0.00014,2]
[406282113,1771687033667,-500.0,0.00014,2]
[406282114,1771687033713,-600.0,0.00014,2]
[406282115,1771687033759,-500.0,0.00014,2]
[406282116,1771687033803,-500.0,0.00014,2]
[406282117,1771687033849,-500.0,0.00014,2]
[406282118,1771687033898,-600.0,0.00014,2]
[406282119,1771687038614,500.0,0.0001,2]
[406282120,1771687038912,-500.0,0.00014,2]
[406282121,1771687038960,-500.0,0.00014,2]
[406282122,1771687039009,-600.0,0.00014,2]
[406282123,1771687039074,-500.0,0.00014,2]
[406282124,1771687039123,-500.0,0.00014,2]
[406282125,1771687039170,-500.0,0.00014,2]
[406282126,1771687039214,-600.0,0.00014,2]
[406282127,1771687039262,-500.0,0.00014,2]
[406282128,1771687039315,-500.70593308,0.00014,2]
[406282129,1771687039607,500.0,0.0001,2]
[406282130,1771687039666,-600.0,0.00014,2]
[406282131,1771687039718,-500.0,0.00014,2]
[406282132,1771687039769,-600.0,0.00014,2]
[406282133,1771687039819,-500.0,0.00014,2]
[406282134,1771687039869,-500.0,0.00014,2]
[406282135,1771687039918,-500.0,0.00014,2]
[406282136,1771687039968,-500.0,0.00014,2]
[406282137,1771687040014,-501.35556143,0.00014,2]
[406282138,1771687040061,-500.0,0.00014,2]
[406282139,1771687040104,-97.29887714,0.00014,2]
[406282140,1771687040445,500.0,0.0001,2]
[406282141,1771687041321,500.0,0.0001,2]
[406282142,1771687041389,600.0,0.0001,2]
[406282144,1771687042119,-3406.09,0.00012989,2]
[406282145,1771687044964,-3187.83,0.00012989,2]
[406282146,1771687045017,-402.70112286,0.00014,2]
[406282147,1771687045068,-500.0,0.00014,2]
[406282148,1771687045119,-500.0,0.00014,2]
[406282149,1771687045169,-318.94775428,0.00014,2]
[406282150,1771687048875,503.26082605,0.0001,2]
[406282151,1771687049245,500.0,0.0001,2]
[406282152,1771687049866,504.37882443,0.0001,2]
[406282153,1771687050024,500.0,0.0001,2]
[406282154,1771687050623,500.0,0.0001,2]
[406282155,1771687051109,-181.05224572,0.00014,2]
[406282156,1771687051153,-500.0,0.00014,2]
[406282157,1771687051198,-500.0,0.00014,2]
[406282158,1771687051242,-500.0,0.00014,2]
[406282159,1771687051287,-501.03439098,0.00014,2]
[406282160,1771687051339,-500.0,0.00014,2]
[406282161,1771687051395,-500.0,0.00014,2]
[406282162,1771687051443,-500.0,0.00014,2]
[406282163,1771687051487,-500.0,0.00014,2]
[406282164,1771687051530,-500.0,0.00014,2]
[406282165,1771687051574,-135.8367266,0.00014,2]
[406282166,1771687051609,500.0,0.0001,2]
[406282167,1771687052338,500.0,0.0001,2]
[406282168,1771687052369,800.0,0.0001,2]
[406282169,1771687052556,500.0,0.0001,2]
[406282170,1771687053075,192.37034952,0.0001,2]
[406282171,1771687053098,606.93101643,0.0001,2]
[406282172,1771687053129,500.0,0.0001,2]
[406282173,1771687053588,500.0,0.0001,2]
[406282174,1771687054055,-364.1632734,0.00014,2]
[406282175,1771687054101,-600.0,0.00014,2]
[406282176,1771687054148,-1300.0,0.00014,2]
[406282177,1771687054193,-500.0,0.00014,2]
[406282178,1771687054241,-500.0,0.00014,2]
[406282179,1771687054289,-500.0,0.00014,2]
[406282180,1771687054343,-1171.6834532,0.00014,2]
[406282181,1771687054429,509.03673562,0.0001,2]
[406282182,1771687054926,1300.0,0.0001,2]
[406282183,1771687055933,1300.0,0.0001,2]
[406282184,1771687056455,284.04224795,0.0001,2]
[406282185,1771687056480,1015.95775205,0.0001,2]
[406282186,1771687056934,1300.0,0.0001,2]
[406282187,1771687057451,1300.0,0.0001,2]
[406282188,1771687057966,1300.0,0.0001,2]
[406282189,1771687058444,1300.0,0.0001,2]
[406282190,1771687058961,1300.0,0.0001,2]
[406282191,1771687059490,1300.0,0.0001,2]
[406282192,1771687060037,1300.0,0.0001,2]
[406282193,1771687060532,1300.0,0.0001,2]
[406282194,1771687060996,900.01,0.0001,2]
[406282195,1771687061034,399.99,0.0001,2]
[406282196,1771687062092,2277.9745872,0.0001,2]
[406282198,1771687079683,7322.0454128,0.00013746,2]
[406282199,1771687079724,10000.01,0.00013746,2]
[406282200,1771687079765,10000.01,0.00013746,2]
[406282201,1771687079804,10000.01,0.00013746,2]
[406282202,1771687079842,10000.01,0.00013746,2]
[406282203,1771687079881,10000.01,0.00013746,2]
[406282204,1771687079919,10000.01,0.00013746,2]
[406282205,1771687079962,10000.01,0.00013746,2]
[406282206,1771687080002,10000.01,0.00013746,2]
[406282207,1771687080043,10000.01,0.00013746,2]
[406282209,1771687088384,-150.0,0.00013745,2]
[406282210,1771687095354,-6227.51821398,0.00013746,2]
[406282211,1771687095445,-10000.01,0.00013746,2]
[406282212,1771687096105,-10000.01,0.00013746,2]
[406282213,1771687096263,-10000.01,0.00013746,2]
[406282214,1771687097433,-10000.01,0.00013746,2]
[406282215,1771687097606,-10000.01,0.00013746,2]
[406282216,1771687097940,-10000.01,0.00013746,2]
[406282217,1771687098142,-10000.01,0.00013746,2]
[406282218,1771687101788,195.93,0.0001199,2]
[406282219,1771687106524,-195.93,0.00013189,2]
[406282220,1771687106597,-9608.15,0.00013746,2]
[406282221,1771687107718,-10000.01,0.00013746,2]
[406282222,1771687108799,-10000.01,0.00013746,2]
[406282225,1771687341822,500.0,0.0001,2]
[406282226,1771687342101,500.0,0.0001,2]
[406282227,1771687342328,900.0,0.0001,2]
[406282228,1771687342722,500.0,0.0001,2]
[406282229,1771687343058,500.0,0.0001,2]
[406282230,1771687343104,500.0,0.0001,2]
[406282231,1771687343390,500.0,0.0001,2]
[406282232,1771687343561,500.0,0.0001,2]
[406282233,1771687343621,500.0,0.0001,2]
[406282234,1771687343890,500.0,0.0001,2]
[406282235,1771687344029,500.0,0.0001,2]
[406282236,1771687344513,500.0,0.0001,2]
[406282237,1771687344995,658.65461334,0.0001,2]
[406282238,1771687348774,500.0,0.0001,2]
[406282239,1771687349363,500.0,0.0001,2]
[406282240,1771687349398,500.0,0.0001,2]
[406282241,1771687349771,500.0,0.0001,2]
[406282242,1771687349889,500.0,0.0001,2]
[406282243,1771687349919,500.0,0.0001,2]
[406282244,1771687350247,341.35538666,0.0001,2]
[406282245,1771687350289,158.64461334,0.0001,2]
[406282246,1771687350401,500.0,0.0001,2]
[406282247,1771687350459,500.0,0.0001,2]
[406282248,1771687350754,500.0,0.0001,2]
[406282249,1771687350880,500.0,0.0001,2]
[406282250,1771687351223,500.0,0.0001,2]
[406282251,1771687351271,500.0,0.0001,2]
[406282252,1771687351401,500.0,0.0001,2]
[406282253,1771687351706,500.0,0.0001,2]
[406282254,1771687351832,441.36538666,0.0001,2]
[406282255,1771687351872,58.63461334,0.0001,2]
[406282256,1771687351953,500.0,0.0001,2]
[406282257,1771687352180,600.03,0.0001,2]
[406282258,1771687352348,500.0,0.0001,2]
[406282259,1771687352412,544.41089992,0.0001,2]
[406282260,1771687352459,524.74352404,0.0001,2]
[406282261,1771687352926,500.0,0.0001,2]
[406282262,1771687353400,500.0,0.0001,2]
[406282263,1771687353438,500.0,0.0001,2]
[406282264,1771687353911,500.0,0.0001,2]
[406282265,1771687353944,987.07415075,0.0001,2]
[406282266,1771687354420,500.0,0.0001,2]
[406282267,1771687354981,500.0,0.0001,2]
[406282268,1771687356350,912.67545182,0.0001,2]
[406282269,1771687387052,-10877.29,0.00013308,2]
[406282270,1771687387075,-163.189676,0.00013432,2]
[406282271,1771687387097,-393.40004605,0.00013557,2]
[406282272,1771687387121,-29788.67766206,0.00013646,2]
[406282273,1771687387143,-200.0,0.00013683,2]
[406282274,1771687387165,-8507.25,0.00013719,2]
[406282275,1771687387186,-10070.82565045,0.00013736,2]
[406282276,1771687387209,-166.66,0.0001374,2]
[406282277,1771687387231,-3240.0,0.0001374,2]
[406282278,1771687387253,-175.8920431,0.00013742,2]
[406282279,1771687387275,-263.0,0.00013742,2]
[406282280,1771687387299,-697.0,0.00013745,2]
[406282281,1771687387321,-1200.0,0.00013745,2]
[406282282,1771687387345,-150.0,0.00013745,2]
[406282283,1771687387368,-134106.81492234,0.00013746,2]
[406282284,1771687431049,-9682.99,0.00013729,2]
[406282285,1771687431077,-22464.89208478,0.00013746,2]
[406282286,1771687431103,-776.31040478,0.00013746,2]
[406282287,1771687431130,-359.017287,0.0001387,7]
[406282288,1771687431155,-200.0,0.00013923,2]
[406282289,1771687431179,-150.0,0.0001396,2]
[406282290,1771687431204,-200.0,0.00014,2]
[406282291,1771687431228,-500.0,0.00014,2]
[406282292,1771687431255,-128.3165468,0.00014,2]
[406282293,1771687431280,-500.0,0.00014,2]
[406282294,1771687431304,-500.0,0.00014,2]
[406282295,1771687431330,-1300.0,0.00014,2]
[406282296,1771687431359,-500.0,0.00014,2]
[406282297,1771687431385,-500.0,0.00014,2]
[406282298,1771687431414,-500.0,0.00014,2]
[406282299,1771687431441,-1300.0,0.00014,2]
[406282300,1771687431470,-500.0,0.00014,2]
[406282301,1771687431498,-1300.0,0.00014,2]
[406282302,1771687431532,-500.0,0.00014,2]
[406282303,1771687431562,-1300.0,0.00014,2]
[406282304,1771687431894,-500.0,0.00014,2]
[406282305,1771687431919,-1300.0,0.00014,2]
[406282306,1771687431941,-1300.0,0.00014,2]
[406282307,1771687431964,-500.0,0.00014,2]
[406282308,1771687431986,-500.0,0.00014,2]
[406282309,1771687432008,-500.0,0.00014,2]
[406282310,1771687432031,-1300.0,0.00014,2]
[406282311,1771687432057,-500.0,0.00014,2]
[406282312,1771687432080,-1300.0,0.00014,2]
[406282313,1771687432102,-500.0,0.00014,2]
[406282314,1771687432129,-1300.0,0.00014,2]
[406282315,1771687432152,-1300.0,0.00014,2]
[406282316,1771687432174,-1300.0,0.00014,2]
[406282317,1771687432198,-1300.0,0.00014,2]
[406282318,1771687432222,-500.0,0.00014,2]
[406282319,1771687432244,-500.0,0.00014,2]
[406282320,1771687432265,-500.0,0.00014,2]
[406282321,1771687432291,-500.0,0.00014,2]
[406282322,1771687432315,-500.0,0.00014,2]
[406282323,1771687432338,-500.0,0.00014,2]
[406282324,1771687432361,-500.0,0.00014,2]
[406282325,1771687432383,-500.0,0.00014,2]
[406282326,1771687432409,-500.0,0.00014,2]
[406282327,1771687432433,-500.0,0.00014,2]
[406282328,1771687432456,-500.0,0.00014,2]
[406282329,1771687432482,-500.0,0.00014,2]
[406282330,1771687432508,-500.0,0.00014,2]
[406282331,1771687432532,-500.0,0.00014,2]
[406282332,1771687432554,-500.0,0.00014,2]
[406282333,1771687432578,-500.0,0.00014,2]
[406282334,1771687432601,-500.0,0.00014,2]
[406282335,1771687432623,-500.0,0.00014,2]
[406282336,1771687432647,-500.0,0.00014,2]
[406282337,1771687432670,-500.0,0.00014,2]
[406282338,1771687432691,-322.49747918,0.00014,2]
[406282339,1771687432713,-746.81779802,0.00014,2]
[406282340,1771687432735,-500.0,0.00014,2]
[406282341,1771687432758,-500.0,0.00014,2]
[406282342,1771687432780,-500.0,0.00014,2]
[406282343,1771687432803,-500.0,0.00014,2]
[406282344,1771687432826,-500.0,0.00014,2]
[406282345,1771687432849,-500.0,0.00014,2]
[406282346,1771687432871,-500.0,0.00014,2]
[406282347,1771687432892,-500.0,0.00014,2]
[406282348,1771687432915,-500.0,0.00014,2]
[406282349,1771687432937,-500.0,0.00014,2]
[406282350,1771687432972,-500.0,0.00014,2]
[406282351,1771687432995,-500.0,0.00014,2]
[406282352,1771687433019,-500.0,0.00014,2]
[406282353,1771687433042,-202.8154755,0.00014,2]
[406282354,1771687433065,-500.0,0.00014,2]
[406282355,1771687433088,-285.78386922,0.00014,2]
[406282356,1771687433111,-467.59818242,0.00014,2]
[406282357,1771687433135,-500.0,0.00014,2]
[406282358,1771687433158,-500.0,0.00014,2]
[406282359,1771687433182,-500.0,0.00014,2]
[406282360,1771687433206,-173.48678662,0.00014,2]
[406282361,1771687433229,-500.0,0.00014,2]
[406282362,1771687433252,-500.0,0.00014,2]
[406282363,1771687433275,-898.50753316,0.00014,2]
[406282364,1771687433297,-500.0,0.00014,2]
[406282365,1771687433322,-500.0,0.00014,2]
[406282366,1771687433349,-500.0,0.00014,2]
[406282367,1771687433374,-500.0,0.00014,2]
[406282368,1771687433398,-500.0,0.00014,2]
[406282369,1771687433427,-500.0,0.00014,2]
[406282370,1771687433452,-500.0,0.00014,2]
[406282371,1771687433476,-500.0,0.00014,2]
[406282372,1771687433502,-500.0,0.00014,2]
[406282373,1771687433524,-500.0,0.00014,2]
[406282374,1771687433546,-500.0,0.00014,2]
[406282375,1771687433573,-500.0,0.00014,2]
[406282376,1771687433595,-500.0,0.00014,2]
[406282377,1771687433619,-557.57142107,0.00014,2]
[406282378,1771687433642,-500.0,0.00014,2]
[406282379,1771687433665,-500.0,0.00014,2]
[406282380,1771687433689,-500.0,0.00014,2]
[406282381,1771687433712,-200.0,0.00014139,2]
[406282382,1771687433736,-200.0,0.0001414,2]
[406282383,1771687433760,-166.66,0.00014193,2]
[406282384,1771687433787,-9999.99,0.00014193,2]
[406282385,1771687433810,-4247.36,0.00014193,2]
[406282386,1771687433834,-787.0,0.0001426,2]
[406282387,1771687433858,-454.14985718,0.00014274,2]
[406282388,1771687433882,-299.99,0.00014274,2]
[406282389,1771687433906,-150.99,0.00014274,2]
[406282390,1771687433930,-9999.99,0.00014274,2]
[406282391,1771687433955,-200.0,0.00014281,2]
[406282392,1771687433979,-195.93,0.00014388,2]
[406282393,1771687434009,-200.0,0.00014424,2]
[406282394,1771687434034,-204.0,0.00014436,2]
[406282395,1771687434057,-377.0,0.00014465,2]
[406282396,1771687434080,-193.0,0.00014469,2]
[406282397,1771687434103,-395.0,0.00014498,2]
[406282398,1771687434128,-200.0,0.000145,5]
[406282399,1771687434152,-300.0,0.000145,5]
[406282400,1771687434177,-200.0,0.00014568,2]
[406282401,1771687434200,-400.0,0.000146,5]
[406282402,1771687434227,-700.0,0.000146,5]
[406282403,1771687434249,-151.0,0.00014634,2]
[406282404,1771687434273,-151.0,0.00014634,2]
[406282405,1771687434296,-151.0,0.00014634,2]
[406282406,1771687434320,-166.66,0.00014647,2]
[406282407,1771687434344,-600.0,0.000147,5]
[406282408,1771687434368,-80266.5233995,0.00014702,2]
[406282409,1771687434390,-500.0,0.00014726,2]
[406282410,1771687434415,-226.15187477,0.00014726,2]
[406282411,1771687459111,456.0,0.00013733,2]
[406282412,1771687459263,456.0,0.00013788,2]
[406282413,1771687459419,456.0,0.00013843,2]
[406282414,1771687459600,-456.0,0.00013897,2]
[406282415,1771687459627,-1000.0,0.000147,5]
[406282416,1771687459654,-250.0,0.000147,2]
[406282417,1771687459679,-5000.0,0.00014701,2]
[406282418,1771687459709,-500.0,0.00014701,2]
[406282419,1771687459734,-273.84812523,0.00014726,2]
[406282420,1771687459760,-5000.0,0.00014732,2]
[406282421,1771687459785,-4323.48,0.00014732,2]
[406282422,1771687459810,-150.0,0.00014758,2]
[406282423,1771687459837,-300.0,0.00014774,2]
[406282424,1771687459863,-300.0,0.00014774,2]
[406282425,1771687459887,-500.0,0.00014775,2]
[406282426,1771687459912,-500.0,0.00014775,2]
[406282427,1771687459938,-193.0,0.00014775,2]
[406282428,1771687459965,-300.0,0.00014775,2]
[406282429,1771687459991,-195.0,0.00014775,2]
[406282430,1771687460016,-150.04229698,0.00014775,2]
[406282431,1771687460041,-250.0,0.00014775,2]
[406282432,1771687460066,-600.0,0.00014775,2]
[406282433,1771687460094,-300.0,0.00014775,2]
[406282434,1771687460123,-500.0,0.00014781,2]
[406282435,1771687460147,-500.0,0.00014781,2]
[406282436,1771687460172,-800.0,0.000148,5]
[406282437,1771687460197,-1400.0,0.000148,5]
[406282438,1771687460222,-156.46736671,0.00014836,2]
[406282439,1771687460246,-500.0,0.00014836,2]
[406282440,1771687460271,-7784.59897748,0.00014873,2]
[406282441,1771687460297,-2020.89196205,0.00014873,2]
[406282442,1771687460325,-614.92339702,0.00014873,2]
[406282443,1771687460350,-388.04497422,0.00014873,2]
[406282444,1771687460374,-500.0,0.0001489,2]
[406282445,1771687460398,-150.99,0.0001489,2]
[406282446,1771687460423,-500.0,0.00014898,2]